bitfinex/quotes_SOLUSD_20220104
["timestamp","ask_amount","ask_price","bid_price","bid_amount"]
[1641339059019,3.59847798,168.67,168.56,24.6458]
[1641339061423,5.04698584,168.67,168.56,24.6458]
[1641339062622,5.04698584,168.67,168.56,24.3858]
[1641339063224,8.52,168.66,168.56,23.0896]
[1641339063421,9.02,168.66,168.56,0.06]
[1641339063621,1.44850786,168.65,168.56,0.06]
[1641339063822,11.36158212,168.64,168.56,0.06]
[1641339064022,11.62158212,168.64,168.56,0.06]
[1641339064223,1.44850786,168.63,168.56,0.06]
[1641339064524,34.1466489,168.61,168.56,0.06]
[1641339064923,34.9066489,168.61,168.56,0.06]
[1641339071829,34.9066489,168.61,168.51,0.06]
[1641339073430,34.4066489,168.61,168.51,0.06]
[1641339074630,34.9066489,168.61,168.51,0.06]
[1641339077135,0.5,168.61,168.51,0.06]
[1641339077333,9.02,168.66,168.51,23.872]
[1641339077530,9.02,168.66,168.51,24.132]
[1641339077732,9.02,168.66,168.51,24.632]
[1641339078131,33.69745135,168.65,168.51,24.632]
[1641339078330,34.19745135,168.65,168.51,24.632]
[1641339078530,34.45745135,168.65,168.53,0.06]
[1641339081541,9.96850786,168.71,168.53,8.58]
[1641339081738,8.52,168.71,168.54,49.03270786]
[1641339081938,9.02,168.71,168.56,0.06]
[1641339082138,9.02,168.71,168.56,99.0342]
[1641339082342,9.02,168.71,168.58,0.06]
[1641339082541,31.66223537,168.7,168.58,0.06]
[1641339082940,32.16223537,168.7,168.58,0.06]
[1641339084440,32.42223537,168.7,168.58,0.06]
[1641339086545,33.69033537,168.7,168.58,0.06]
[1641339088169,3.67449031,168.69,168.58,0.06]
[1641339088368,4.17449031,168.69,168.58,0.06]
[1641339088570,4.43449031,168.69,168.58,0.06]
[1641339089170,5.88299817,168.69,168.58,0.06]
[1641339089971,4.43449031,168.69,168.58,0.06]
[1641339090374,4.17449031,168.69,168.58,0.06]
[1641339092073,4.43449031,168.69,168.58,0.06]
[1641339093273,4.17449031,168.69,168.58,0.06]
[1641339094674,4.43449031,168.69,168.58,0.06]
[1641339097283,8.52,168.68,168.58,0.06]
[1641339097482,2.72184455,168.67,168.58,0.06]
[1641339097883,7.15633486,168.67,168.58,0.06]
[1641339101186,6.89633486,168.67,168.58,0.06]
[1641339101389,6.65633486,168.67,168.58,0.06]
[1641339102987,7.15633486,168.67,168.58,0.06]
[1641339106522,15.67633486,168.67,168.58,0.06]
[1641339108523,15.67633486,168.67,168.55,0.06]
[1641339109125,15.67633486,168.67,168.55,24.4866]
[1641339109525,17.12484272,168.67,168.55,24.4866]
[1641339109727,15.67633486,168.67,168.55,25.7191]
[1641339109927,15.41633486,168.67,168.55,25.7191]
[1641339111432,15.67633486,168.67,168.55,25.7191]
[1641339112832,15.67633486,168.67,168.55,25.9791]
[1641339113031,15.67633486,168.67,168.55,25.7191]
[1641339118138,12.69449031,168.67,168.55,25.9791]
[1641339118337,12.69449031,168.67,168.55,31.5061]
[1641339118338,12.19449031,168.67,168.55,31.5061]
[1641339118739,12.69449031,168.67,168.55,32.0061]
[1641339119136,15.72497893,168.67,168.55,32.0061]
[1641339119536,15.98497893,168.67,168.55,32.0061]
[1641339122141,12.69449031,168.67,168.55,32.0061]
[1641339122341,3.67449031,168.67,168.55,32.0061]
[1641339122543,3.67449031,168.67,168.56,8.52]
[1641339122943,3.67449031,168.69,168.56,10.72850786]
[1641339123150,3.67449031,168.69,168.57,23.0409]
[1641339123343,3.67449031,168.69,168.57,24.98940786]
[1641339123542,3.93449031,168.69,168.58,0.06]
[1641339123744,3.93449031,168.69,168.58,9.8287]
[1641339123945,3.93449031,168.69,168.58,10.5887]
[1641339124343,2.36575848,168.68,168.58,10.5887]
[1641339125446,2.36575848,168.68,168.58,10.0887]
[1641339125844,2.62575848,168.68,168.58,10.5887]
[1641339126046,3.67449031,168.67,168.58,10.5887]
[1641339126445,3.93449031,168.67,168.58,10.5887]
[1641339126648,3.93449031,168.67,168.58,10.0887]
[1641339126849,4.43449031,168.67,168.58,10.0887]
[1641339127046,4.43449031,168.67,168.58,1.5687]
[1641339127245,4.43449031,168.67,168.58,1.3087]
[1641339134083,12.95449031,168.67,168.58,0.06]
[1641339134285,1.44850786,168.66,168.58,0.06]
[1641339134487,1.70850786,168.66,168.58,0.06]
[1641339134784,6.2989865,168.65,168.58,0.06]
[1641339135083,27.48255521,168.64,168.58,0.06]
[1641339135483,28.24255521,168.64,168.58,0.06]
[1641339137785,8.52,168.63,168.58,0.06]
[1641339137984,2.90863873,168.62,168.58,0.06]
[1641339138385,3.66863873,168.62,168.58,0.06]
[1641339139590,4.96433873,168.62,168.58,0.06]
[1641339140191,13.48433873,168.62,168.58,0.06]
[1641339140989,8.52,168.62,168.51,0.06]
[1641339141189,3.67449031,168.63,168.51,0.06]
[1641339141489,3.67449031,168.61,168.51,0.06]
[1641339141896,6.26733363,168.61,168.51,0.06]
[1641339142293,6.52733363,168.61,168.51,0.06]
[1641339142494,4.43449031,168.61,168.51,0.06]
[1641339142696,3.93449031,168.61,168.51,0.06]
[1641339143597,6.49875551,168.61,168.51,0.06]
[1641339143995,6.99875551,168.61,168.51,0.06]
[1641339160350,15.51875551,168.61,168.51,0.06]
[1641339170658,15.25875551,168.61,168.51,0.06]
[1641339171956,15.51875551,168.61,168.51,0.06]
[1641339174667,15.25875551,168.61,168.51,0.06]
[1641339175967,15.51875551,168.61,168.51,0.06]
[1641339178891,1.2502,168.6,168.51,0.06]
[1641339179092,1.5102,168.6,168.51,0.06]
[1641339179292,3.67449031,168.59,168.51,0.06]
[1641339179493,3.93449031,168.59,168.51,0.06]
[1641339179693,4.43449031,168.59,168.51,0.06]
[1641339184300,8.83191681,168.58,168.51,0.06]
[1641339184499,30.87684002,168.57,168.51,0.06]
[1641339184699,34.55133033,168.57,168.51,0.06]
[1641339184902,35.31133033,168.57,168.51,0.06]
[1641339185401,34.55133033,168.57,168.51,0.06]
[1641339188605,34.81133033,168.57,168.51,0.06]
[1641339188806,34.55133033,168.57,168.51,0.06]
[1641339190706,3.67449031,168.57,168.51,0.06]
[1641339191107,3.67449031,168.6,168.51,0.06]
[1641339191308,3.67449031,168.6,168.51,24.4588]
[1641339191509,3.67449031,168.6,168.51,24.7188]
[1641339191707,3.67449031,168.6,168.51,25.2188]
[1641339191907,3.67449031,168.6,168.52,1.2678]
[1641339192107,3.67449031,168.6,168.53,0.06]
[1641339194014,0.02,168.65,168.53,0.06]
[1641339194210,3.67449031,168.61,168.53,8.58]
[1641339194412,0.02,168.65,168.55,53.0]
[1641339194618,0.02,168.65,168.56,0.06]
[1641339195218,28.25249787,168.71,168.56,25.6933]
[1641339195416,28.25249787,168.71,168.56,26.1933]
[1641339195617,28.51249787,168.71,168.56,26.4533]
[1641339195840,28.51249787,168.71,168.58,0.06]
[1641339196439,28.51249787,168.71,168.58,22.5934]
[1641339196939,1.2901,168.7,168.59,1.2415]
[1641339197340,2.0501,168.7,168.59,2.0015]
[1641339197939,2.0501,168.7,168.6,0.06]
[1641339198339,0.76,168.7,168.6,0.06]
[1641339198539,0.5,168.7,168.6,0.06]
[1641339198742,28.25249787,168.71,168.6,0.06]
[1641339199841,28.51249787,168.71,168.6,0.06]
[1641339201443,28.01249787,168.71,168.6,0.06]
[1641339201946,28.51249787,168.71,168.6,0.06]
[1641339203046,8.52,168.7,168.6,0.06]
[1641339203445,10.72850786,168.7,168.6,0.06]
[1641339203645,9.28,168.7,168.6,0.06]
[1641339203845,1.2776,168.69,168.6,0.06]
[1641339204046,10.0576,168.69,168.6,0.06]
[1641339204244,10.5576,168.69,168.6,0.06]
[1641339204448,10.2976,168.69,168.6,0.06]
[1641339205847,10.5576,168.69,168.6,0.06]
[1641339210552,12.00610786,168.69,168.6,0.06]
[1641339210954,10.5576,168.69,168.6,0.06]
[1641339211351,10.2976,168.69,168.6,0.06]
[1641339212452,2.0376,168.69,168.6,0.06]
[1641339212653,1.7776,168.69,168.6,0.06]
[1641339212853,0.5,168.69,168.6,0.06]
[1641339213054,28.25249787,168.71,168.6,0.06]
[1641339214053,28.51249787,168.71,168.6,0.06]
[1641339214253,28.01249787,168.71,168.6,0.06]
[1641339214857,28.51249787,168.71,168.6,0.06]
[1641339218465,28.01249787,168.71,168.6,0.06]
[1641339219264,26.16299063,168.71,168.6,0.06]
[1641339220365,2.71031279,168.7,168.6,0.06]
[1641339220566,2.97031279,168.7,168.6,0.06]
[1641339220964,3.47031279,168.7,168.6,0.06]
[1641339222368,2.97031279,168.7,168.6,0.06]
[1641339223783,2.71031279,168.7,168.6,0.06]
[1641339225870,2.97031279,168.7,168.6,0.06]
[1641339227975,25.40299063,168.71,168.6,0.06]
[1641339227976,23.5677,168.73,168.6,0.06]
[1641339228175,32.6929,168.77,168.6,1.50850786]
[1641339228376,0.02,168.78,168.61,8.52]
[1641339228674,0.02,168.78,168.62,1.44850786]
[1641339228878,0.02,168.78,168.63,8.52]
[1641339229075,0.02,168.78,168.64,48.9028]
[1641339229274,34.22980041,168.8,168.64,50.35130786]
[1641339229502,34.48980041,168.8,168.65,1.50850786]
[1641339229676,34.98980041,168.8,168.65,79.90250786]
[1641339229880,34.98980041,168.8,168.65,80.66250786]
[1641339230276,34.98980041,168.8,168.67,0.06]
[1641339231476,0.76,168.8,168.67,1.3277]
[1641339231676,0.5,168.8,168.67,2.77620786]
[1641339231878,9.02,168.83,168.69,0.06]
[1641339232076,11.86435084,168.89,168.7,8.52]
[1641339232277,11.86435084,168.89,168.72,0.06]
[1641339232480,11.86435084,168.89,168.74,0.06]
[1641339232481,26.72413803,168.88,168.74,0.06]
[1641339232677,26.72413803,168.88,168.74,38.5879]
[1641339232876,26.72413803,168.88,168.74,39.0879]
[1641339233076,26.72413803,168.88,168.74,39.3479]
[1641339233476,27.22413803,168.88,168.74,39.3479]
[1641339233881,27.48413803,168.88,168.74,39.3479]
[1641339234480,27.48413803,168.88,168.74,33.2299]
[1641339235484,27.22413803,168.88,168.74,33.2299]
[1641339235986,35.74413803,168.88,168.74,24.7099]
[1641339237013,36.00413803,168.88,168.74,24.7099]
[1641339243918,36.00413803,168.88,168.74,24.4499]
[1641339245321,36.00413803,168.88,168.74,24.7099]
[1641339246222,36.00413803,168.88,168.74,24.4499]
[1641339247522,36.00413803,168.88,168.74,24.7099]
[1641339249428,35.74413803,168.88,168.74,24.7099]
[1641339250327,35.74413803,168.88,168.74,25.2099]
[1641339250529,27.22413803,168.88,168.75,8.52]
[1641339251026,27.22413803,168.88,168.76,25.70850786]
[1641339251527,27.22413803,168.88,168.76,26.46850786]
[1641339252032,27.48413803,168.88,168.76,25.02]
[1641339255434,27.48413803,168.88,168.76,24.52]
[1641339256638,27.48413803,168.88,168.76,24.26]
[1641339257742,27.48413803,168.88,168.76,24.76]
[1641339257942,27.48413803,168.88,168.76,25.02]
[1641339258443,27.48413803,168.88,168.76,24.52]
[1641339260043,27.48413803,168.88,168.76,24.26]
[1641339263267,8.52,168.87,168.76,24.26]
[1641339263564,9.28,168.87,168.76,24.26]
[1641339263969,9.02,168.87,168.76,24.26]
[1641339264470,9.02,168.87,168.76,24.52]
[1641339264874,9.02,168.87,168.76,24.26]
[1641339265073,9.02,168.87,168.76,24.52]
[1641339265272,9.28,168.87,168.76,24.52]
[1641339265674,9.02,168.87,168.76,24.52]
[1641339267673,9.28,168.87,168.76,24.52]
[1641339268880,9.28,168.87,168.76,25.02]
[1641339269379,9.02,168.87,168.76,24.52]
[1641339270079,9.02,168.87,168.76,25.02]
[1641339270280,9.02,168.87,168.76,24.96]
[1641339270882,9.28,168.87,168.76,24.96]
[1641339272985,0.76,168.87,168.76,24.96]
[1641339273386,27.48413803,168.88,168.76,24.96]
[1641339278195,27.48413803,168.88,168.77,1.2401]
[1641339278396,27.48413803,168.88,168.77,1.7401]
[1641339278595,27.48413803,168.88,168.77,2.0001]
[1641339279496,27.48413803,168.88,168.77,1.7401]
[1641339280802,27.48413803,168.88,168.77,2.0001]
[1641339281207,27.22413803,168.88,168.77,7.4901]
[1641339281409,24.57894336,168.88,168.78,24.52]
[1641339281602,24.57894336,168.88,168.78,33.36]
[1641339281802,24.57894336,168.88,168.78,33.86]
[1641339282626,3.00804447,168.92,168.78,33.86]
[1641339283428,3.00804447,168.92,168.79,1.258]
[1641339283829,3.50804447,168.92,168.79,2.018]
[1641339284033,3.50804447,168.92,168.79,74.2313]
[1641339284831,3.50804447,168.92,168.8,23.7207]
[1641339285030,3.50804447,168.92,168.8,23.9807]
[1641339285229,3.50804447,168.92,168.8,24.4807]
[1641339286533,3.76804447,168.92,168.8,24.4807]
[1641339287733,3.76804447,168.92,168.8,24.5407]
[1641339289038,3.76804447,168.92,168.81,1.2535]
[1641339289435,3.76804447,168.92,168.81,2.0135]
[1641339295447,3.76804447,168.92,168.81,2.0735]
[1641339302681,3.76804447,168.92,168.81,1.5735]
[1641339303082,12.28804447,168.92,168.81,1.5735]
[1641339303583,13.60544447,168.92,168.81,1.5735]
[1641339305987,13.60544447,168.92,168.81,1.3135]
[1641339307491,13.60544447,168.92,168.81,1.5735]
[1641339308688,5.08544447,168.92,168.81,1.5735]
[1641339312691,14.16804447,168.92,168.81,1.5735]
[1641339313093,22.68804447,168.92,168.81,1.5735]
[1641339313693,14.16804447,168.92,168.81,1.5735]
[1641339313996,22.68804447,168.92,168.81,1.5735]
[1641339314696,14.16804447,168.92,168.81,1.5735]
[1641339314895,14.16804447,168.92,168.81,2.0735]
[1641339316195,8.52,168.91,168.81,2.0735]
[1641339316395,0.5,168.91,168.81,2.0735]
[1641339316595,0.76,168.91,168.81,2.0735]
[1641339317297,5.08544447,168.92,168.81,2.0735]
[1641339317899,3.76804447,168.92,168.81,2.0735]
[1641339318699,0.5,168.92,168.81,6.7705]
[1641339318899,27.21012181,168.94,168.82,23.7758]
[1641339318900,27.71012181,168.94,168.82,23.7758]
[1641339319101,0.5,168.94,168.82,24.0358]
[1641339319302,0.5,168.94,168.82,33.0558]
[1641339319525,25.8027,168.96,168.83,0.06]
[1641339319728,2.53556643,168.95,168.83,0.06]
[1641339319929,3.03556643,168.95,168.83,1.4125]
[1641339320330,3.03556643,168.95,168.83,2.1725]
[1641339321128,3.03556643,168.95,168.83,1.9125]
[1641339321327,8.52,168.94,168.83,1.9125]
[1641339321728,9.28,168.94,168.83,1.4125]
[1641339321927,9.28,168.94,168.83,0.06]
[1641339322327,10.5513,168.94,168.83,0.06]
[1641339322929,22.9259,168.93,168.83,0.06]
[1641339323428,23.6859,168.93,168.83,1.3041]
[1641339323832,23.6859,168.93,168.83,0.32]
[1641339324030,23.6859,168.93,168.83,1.3409]
[1641339324031,22.9259,168.93,168.83,1.3409]
[1641339324429,1.2713,168.94,168.83,1.6009]
[1641339324632,1.5313,168.94,168.83,7.1079]
[1641339324830,1.5313,168.94,168.83,7.6079]
[1641339325231,2.0313,168.94,168.84,23.1708]
[1641339325432,2.0313,168.94,168.84,23.6708]
[1641339325632,2.0313,168.94,168.84,23.9308]
[1641339326432,2.0313,168.94,168.85,1.3571]
[1641339326832,2.0313,168.94,168.85,1.6171]
[1641339330435,2.0313,168.94,168.85,0.26]
[1641339330436,8.52,168.93,168.85,0.26]
[1641339330842,9.28,168.93,168.84,23.4308]
[1641339331640,9.28,168.93,168.84,0.26]
[1641339332039,9.28,168.93,168.8,26.8754]
[1641339332440,1.2683,168.92,168.8,26.8754]
[1641339332641,9.7883,168.92,168.8,26.8754]
[1641339332842,10.5483,168.92,168.8,26.8754]
[1641339334945,10.2883,168.92,168.8,26.8754]
[1641339335847,10.5483,168.92,168.8,26.8754]
[1641339336447,10.5483,168.92,168.8,24.8851]
[1641339338477,10.5483,168.92,168.8,25.1451]
[1641339340278,10.2883,168.92,168.8,25.1451]
[1641339340479,10.2883,168.92,168.81,1.327]
[1641339340879,10.2883,168.92,168.81,2.087]
[1641339342383,10.2883,168.92,168.81,2.147]
[1641339343380,10.5483,168.92,168.81,2.147]
[1641339343781,10.2883,168.92,168.81,2.147]
[1641339343984,10.5483,168.92,168.81,2.147]
[1641339344181,10.5483,168.92,168.81,1.887]
[1641339345986,10.5483,168.92,168.81,2.147]
[1641339346785,10.2883,168.92,168.81,2.147]
[1641339347088,10.5483,168.92,168.81,2.147]
[1641339348989,10.2883,168.92,168.81,2.147]
[1641339350489,10.5483,168.92,168.81,2.147]
[1641339350689,10.2883,168.92,168.81,2.147]
[1641339350890,10.5483,168.92,168.81,2.147]
[1641339351494,2.0283,168.92,168.81,2.147]
[1641339351693,5.82798781,168.91,168.81,2.147]
[1641339351893,6.32798781,168.91,168.81,2.147]
[1641339352092,6.58798781,168.91,168.81,2.147]
[1641339352494,6.08798781,168.91,168.81,2.147]
[1641339352791,6.58798781,168.91,168.81,2.147]
[1641339358599,15.10798781,168.91,168.81,1.647]
[1641339359600,15.10798781,168.91,168.81,1.387]
[1641339360902,15.10798781,168.91,168.81,1.647]
[1641339367033,6.58798781,168.91,168.81,1.647]
[1641339369636,6.58798781,168.91,168.81,2.147]
[1641339373942,31.6282078,168.89,168.81,2.147]
[1641339374344,32.3882078,168.89,168.81,2.147]
[1641339374543,5.82798781,168.88,168.81,2.147]
[1641339374840,6.32798781,168.88,168.81,2.147]
[1641339376242,5.82798781,168.88,168.81,2.147]
[1641339376444,6.32798781,168.88,168.81,2.147]
[1641339383277,6.32798781,168.88,168.81,1.647]
[1641339388060,6.32798781,168.88,168.81,2.147]
[1641339388461,6.32798781,168.88,168.81,1.647]
[1641339388864,6.32798781,168.88,168.81,2.147]
[1641339392287,8.52,168.87,168.81,0.06]
[1641339392487,8.78,168.87,168.81,0.06]
[1641339392685,29.54398781,168.86,168.81,0.06]
[1641339392887,8.52,168.85,168.81,0.06]
[1641339393088,10.0368,168.85,168.81,0.06]
[1641339393287,10.5368,168.85,168.81,0.06]
[1641339393487,24.375,168.84,168.81,0.06]
[1641339393688,31.41267738,168.82,168.81,0.06]
[1641339393896,31.91267738,168.82,168.81,0.06]
[1641339394591,33.40607738,168.82,168.81,0.06]
[1641339394889,41.92607738,168.82,168.67,1.3869]
[1641339396092,5.82798781,168.81,168.67,1.3869]
[1641339396291,8.02,168.8,168.67,1.3869]
[1641339396491,8.28,168.8,168.67,1.3869]
[1641339396693,8.78,168.8,168.67,3.59540786]
[1641339396893,8.52,168.8,168.67,3.59540786]
[1641339397094,9.804,168.8,168.68,24.3168]
[1641339397496,9.804,168.8,168.68,26.02530786]
[1641339397697,8.52,168.8,168.68,31.66730786]
[1641339398195,0.5,168.8,168.68,31.66730786]
[1641339398396,6.32798781,168.81,168.69,1.2426]
[1641339398598,6.32798781,168.81,168.69,1.5026]
[1641339398796,6.32798781,168.81,168.69,2.0626]
[1641339399196,6.32798781,168.81,168.69,1.8026]
[1641339399697,1.2866,168.8,168.69,1.8026]
[1641339399897,1.7866,168.8,168.69,1.8026]
[1641339400496,5.82798781,168.79,168.69,2.0626]
[1641339400896,6.32798781,168.79,168.69,2.0626]
[1641339401298,5.82798781,168.79,168.69,2.0626]
[1641339403401,5.82798781,168.79,168.69,10.5826]
[1641339403601,5.82798781,168.79,168.7,1.44850786]
[1641339403802,5.82798781,168.81,168.71,8.52]
[1641339404001,5.82798781,168.81,168.71,32.6232]
[1641339404203,5.82798781,168.81,168.71,34.57170786]
[1641339404402,5.82798781,168.81,168.72,0.06]
[1641339404602,5.82798781,168.81,168.72,9.9234]
[1641339405004,5.82798781,168.81,168.72,10.6834]
[1641339406905,5.82798781,168.81,168.72,10.4234]
[1641339407104,5.82798781,168.82,168.72,10.4234]
[1641339407406,5.82798781,168.82,168.73,23.7489]
[1641339407906,5.82798781,168.82,168.73,24.2489]
[1641339408305,5.82798781,168.82,168.74,1.2825]
[1641339408506,5.82798781,168.82,168.74,1.5425]
[1641339408705,5.82798781,168.82,168.74,2.0425]
[1641339409706,8.39059749,168.82,168.74,2.0425]
[1641339412407,8.39059749,168.82,168.68,1.44850786]
[1641339412607,17.17059749,168.82,168.69,1.3539]
[1641339412807,17.67059749,168.82,168.69,1.3539]
[1641339413009,17.67059749,168.82,168.69,1.8539]
[1641339413209,1.3283,168.81,168.69,1.8539]
[1641339413510,36.82575406,168.8,168.69,2.1139]
[1641339414008,37.58575406,168.8,168.69,2.1139]
[1641339414208,37.32575406,168.8,168.69,2.1139]
[1641339414410,28.80575406,168.8,168.69,2.1139]
[1641339414611,28.30575406,168.8,168.69,10.6339]
[1641339414810,28.30575406,168.8,168.7,8.52]
[1641339415109,28.30575406,168.8,168.7,0.26]
[1641339415710,28.30575406,168.8,168.69,1.6139]
[1641339415910,28.30575406,168.8,168.69,1.6739]
[1641339416113,28.30575406,168.8,168.69,2.1739]
[1641339416310,28.30575406,168.8,168.69,1.9139]
[1641339416912,28.56575406,168.8,168.69,1.9139]
[1641339417716,28.56575406,168.8,168.69,2.1739]
[1641339418515,28.56575406,168.8,168.69,1.9139]
[1641339419718,28.56575406,168.8,168.69,2.1739]
[1641339419918,28.56575406,168.8,168.69,10.6939]
[1641339420318,28.56575406,168.8,168.69,2.1739]
[1641339421925,1.2963,168.79,168.69,2.1739]
[1641339422322,5.82798781,168.78,168.69,2.1739]
[1641339426848,6.32798781,168.78,168.69,2.1739]
[1641339429054,6.32798781,168.78,168.69,10.6939]
[1641339429250,5.82798781,168.78,168.69,10.6939]
[1641339429454,5.82798781,168.78,168.7,23.426]
[1641339429853,5.82798781,168.78,168.7,24.186]
[1641339433758,5.82798781,168.78,168.7,32.706]
[1641339434560,5.82798781,168.78,168.7,24.186]
[1641339435160,5.82798781,168.78,168.7,32.706]
[1641339435562,5.82798781,168.78,168.7,24.186]
[1641339437762,5.82798781,168.78,168.7,32.706]
[1641339437963,5.82798781,168.78,168.7,24.186]
[1641339439466,5.82798781,168.78,168.7,23.426]
[1641339439664,5.82798781,168.78,168.67,1.2456]
[1641339439665,6.58798781,168.78,168.66,78.6999]
[1641339439865,22.5004,168.77,168.66,79.9987]
[1641339440064,2.67396476,168.76,168.66,79.9987]
[1641339440267,1.2362,168.75,168.66,79.9987]
[1641339440464,1.4962,168.75,168.66,79.9987]
[1641339440666,1.9962,168.75,168.66,79.9987]
[1641339441365,1.9962,168.75,168.66,80.2587]
[1641339442666,1.9962,168.75,168.66,79.9987]
[1641339443566,5.82798781,168.74,168.66,79.9987]
[1641339443766,29.3585055,168.73,168.66,79.9987]
[1641339443966,30.1185055,168.73,168.66,80.2587]
[1641339444166,30.1185055,168.73,168.66,79.9987]
[1641339445470,30.1185055,168.73,168.66,80.2587]
[1641339446369,5.82798781,168.72,168.66,80.2587]
[1641339446569,6.08798781,168.72,168.66,80.2587]
[1641339446770,6.08798781,168.72,168.66,1.5588]
[1641339446979,6.58798781,168.72,168.66,1.5588]
[1641339447373,5.82798781,168.72,168.66,1.5588]
[1641339448975,6.58798781,168.72,168.63,23.4134]
[1641339449277,6.58798781,168.72,168.65,0.26]
[1641339449478,15.10798781,168.72,168.63,0.26]
[1641339449675,16.44238781,168.72,168.63,0.26]
[1641339449875,16.44238781,168.72,168.62,74.1821]
[1641339450276,41.12158781,168.72,168.62,74.1821]
[1641339450904,41.12158781,168.72,168.62,74.4421]
[1641339451406,41.12158781,168.72,168.62,0.26]
[1641339451609,41.12158781,168.72,168.61,1.2484]
[1641339452404,41.12158781,168.72,168.61,1.7484]
[1641339452604,41.12158781,168.72,168.61,1.2484]
[1641339453206,41.12158781,168.72,168.61,2.0084]
[1641339453606,40.86158781,168.72,168.61,1.5084]
[1641339453806,7.16238781,168.72,168.62,0.06]
[1641339454006,7.16238781,168.72,168.62,7.361]
[1641339454007,5.82798781,168.72,168.62,7.361]
[1641339454207,5.82798781,168.72,168.62,15.881]
[1641339454408,5.82798781,168.75,168.63,1.44850786]
[1641339454609,5.82798781,168.75,168.65,0.06]
[1641339454808,5.82798781,168.75,168.67,0.06]
[1641339455009,5.82798781,168.75,168.67,7.8452]
[1641339455411,5.82798781,168.75,168.67,8.6052]
[1641339459621,5.82798781,168.75,168.67,2.1102]
[1641339462221,6.32798781,168.75,168.67,2.1102]
[1641339462617,6.32798781,168.75,168.67,1.6102]
[1641339463222,6.58798781,168.75,168.67,1.6102]
[1641339464924,6.58798781,168.75,168.67,0.06]
[1641339465821,1.2884,168.74,168.67,0.06]
[1641339466021,1.5484,168.74,168.67,0.06]
[1641339466221,5.82798781,168.73,168.67,0.06]
[1641339466421,6.32798781,168.73,168.67,0.06]
[1641339466623,6.58798781,168.73,168.67,0.06]
[1641339467427,1.2469,168.72,168.67,0.06]
[1641339467827,2.0069,168.72,168.67,0.06]
[1641339469224,5.82798781,168.71,168.67,0.06]
[1641339469424,28.16172814,168.7,168.67,0.06]
[1641339469825,28.42172814,168.7,168.67,0.06]
[1641339470527,3.03022904,168.69,168.67,0.06]
[1641339472328,5.82798781,168.68,168.67,0.06]
[1641339472533,5.82798781,168.68,168.62,2.0595]
[1641339476638,5.82798781,168.68,168.62,1.7995]
[1641339477256,5.82798781,168.68,168.62,1.2995]
[1641339477659,5.82798781,168.68,168.62,10.3195]
[1641339477956,5.82798781,168.69,168.62,10.3195]
[1641339478157,5.82798781,168.69,168.62,10.5795]
[1641339478356,5.82798781,168.69,168.62,10.6395]
[1641339478559,23.01625815,168.68,168.62,10.3795]
[1641339479956,23.01625815,168.68,168.62,10.6395]
[1641339480958,5.82798781,168.67,168.62,10.6395]
[1641339487075,1.3499,168.74,168.62,10.6395]
[1641339487076,5.82798781,168.68,168.62,10.6395]
[1641339487474,5.82798781,168.68,168.62,18.73200786]
[1641339489076,5.82798781,168.68,168.62,12.08800786]
[1641339489275,3.43762459,168.68,168.62,12.08800786]
[1641339490077,3.43762459,168.72,168.62,12.08800786]
[1641339490277,3.43762459,168.72,168.63,24.0365]
[1641339490478,3.43762459,168.72,168.64,8.58]
[1641339490680,3.43762459,168.72,168.64,10.02850786]
[1641339490876,3.43762459,168.72,168.64,10.78850786]
[1641339491477,3.43762459,168.72,168.64,12.14170786]
[1641339493579,3.43762459,168.72,168.65,1.44850786]